{"text_format":"3","workbook":"xlsx","n_sheets":2,"sheets":["Začni","Osebni mesečni proračun"],"not_rendered":{"images":1},"read":"whole","date_system":"1900"}

{"sheet":"Začni","index":0,"n_rows":7,"n_cols":2,"rows_kept":7}
[null,"O tej predlogi"]
[null,"S tem delovnim listom za osebni mesečni proračun lahko spremljate svoje predvidene in dejanske mesečne dohodke ter predvidene in dejanske stroške."]
[null,"Vnesite dejanske stroške po različnih kategorijah v ustrezne tabele."]
[null,"Predvidena bilanca, dejanska bilanca in razlika so samodejno izračunani."]
[null,"Opomba: "]
[null,"Dodatna navodila so na voljo v stolpcu A na delovnem listu OSEBNI MESEČNI PRORAČUN. To besedilo je bilo skrito namenoma. Če želite besedilo premakniti, izberite stolpec A, nato izberite še IZBRIŠI. Če želite besedilo razkriti, izberite stolpec A, nato zamenjajte barvo pisave."]
[null,"Če želite izvedeti več o tabelah na delovnem list, znotraj tabele pritisnite SHIFT in nato F10, izberite možnost TABELA in nato izberite še NADOMESTNO BESEDILO."]

{"sheet":"Osebni mesečni proračun","index":1,"n_rows":66,"n_cols":10,"rows_kept":66,"merged":[[3,1,3,2],[3,4,4,6],[3,7,4,7],[5,4,6,6],[5,7,6,7],[7,4,8,6],[7,7,8,7],[8,1,8,2],[24,6,24,9],[25,1,25,4],[33,6,33,9],[35,1,35,4],[40,6,40,9],[42,1,42,4],[46,6,46,9],[48,1,48,4],[52,6,52,9],[56,1,56,4],[59,6,59,9],[60,6,61,8],[60,9,61,9],[62,6,63,8],[62,9,63,9],[64,6,65,8],[64,9,65,9],[67,1,67,4]]}
["Na tem delovnem listu ustvarite osebni mesečni proračun. Koristna navodila za uporabo tega delovnega lista najdete v celicah v tem stolpcu. Puščica dol za začetek dela."]
["Naslov tega delovnega lista je v celici na desni. Naslednji korak je v celici A5.",null,"Osebni mesečni proračun"]
[]
["Oznaka za predvidene mesečne dohodke je v celici na desni. Dohodek 1 vnesite v celico C5, dodatni dohodek pa vnesite v celico C6, da izračunate skupni mesečni dohodek v celici C7. Naslednji korak je v celici A7.","Predviden mesečni dohodek",null,null,"Predvidena bilanca\n(predvideni dohodek minus stroški)",null,null,{"$f":"C7-J61","v":{"v":3405,"d":"3,405.00 €"}}]
[null,"Dohodek 1",{"v":4300,"d":"4,300.00 €"}]
[null,"Dodatni dohodek",{"v":300,"d":"300.00 €"},null,"Dejanska bilanca\n(dejanski dohodek minus stroški)",null,null,{"$f":"C12-J63","v":{"v":3064,"d":"3,064.00 €"}}]
["Predvidena bilanca je samodejno izračunana v celici H4, dejanska bilanca v celici H6 in razlika v celici H8. Naslednji korak je v celici A9.","Mesečni dohodek skupaj",{"$f":"SUM(C5:C6)","v":{"v":4600,"d":"4,600.00 €"}}]
[{"$nulls":4},"Razlika\n(Dejansko minus predvideno)",null,null,{"$f":"H6-H4","v":{"v":-341,"d":"-341.00 €"}}]
["Oznaka za dejanske mesečne dohodke je v celici na desni. Dohodek 1 vnesite v celico C10, dodatni dohodek pa vnesite v celico C11, da izračunate skupni mesečni dohodek v celici C12. Naslednji korak je v celici A14.","Dejanski mesečni dohodek"]
[null,"Dohodek 1",{"v":4000,"d":"4,000.00 €"}]
[null,"Dodatni dohodek",{"v":300,"d":"300.00 €"}]
[null,"Mesečni dohodek skupaj",{"$f":"SUM(C10:C11)","v":{"v":4300,"d":"4,300.00 €"}}]
[]
["Podrobnosti vnesite v tabelo »Nastanitev«, ki se začne v celici na desni, ter v tabelo »Razvedrilo«, ki se začne v celici G14. Naslednji korak je v celici A27.","NASTANITEV","Predvideni stroški","Dejanski stroški","Razlika",null,"ZABAVA","Predvideni stroški","Dejanski stroški","Razlika"]
[null,"Hipoteka ali najemnina",{"v":1000,"d":"1,000.00 €"},{"v":1000,"d":"1,000.00 €"},{"$f":"Nastanitev[[#This Row],[Predvideni stroški]]-Nastanitev[[#This Row],[Dejanski stroški]]","v":{"v":0,"d":"0.00 €"}},null,"Video/DVD",null,null,{"$f":"Zabava[[#This Row],[Predvideni stroški]]-Zabava[[#This Row],[Dejanski stroški]]","v":{"v":0,"d":"0.00 €"}}]
[null,"Telefon",{"v":54,"d":"54.00 €"},{"v":100,"d":"100.00 €"},{"$f":"Nastanitev[[#This Row],[Predvideni stroški]]-Nastanitev[[#This Row],[Dejanski stroški]]","v":{"v":-46,"d":"-46.00 €"}},null,"CD-ji",null,null,{"$f":"Zabava[[#This Row],[Predvideni stroški]]-Zabava[[#This Row],[Dejanski stroški]]","v":{"v":0,"d":"0.00 €"}}]
[null,"Elektrika",{"v":44,"d":"44.00 €"},{"v":56,"d":"56.00 €"},{"$f":"Nastanitev[[#This Row],[Predvideni stroški]]-Nastanitev[[#This Row],[Dejanski stroški]]","v":{"v":-12,"d":"-12.00 €"}},null,"Filmi",null,null,{"$f":"Zabava[[#This Row],[Predvideni stroški]]-Zabava[[#This Row],[Dejanski stroški]]","v":{"v":0,"d":"0.00 €"}}]
[null,"Plin",{"v":22,"d":"22.00 €"},{"v":28,"d":"28.00 €"},{"$f":"Nastanitev[[#This Row],[Predvideni stroški]]-Nastanitev[[#This Row],[Dejanski stroški]]","v":{"v":-6,"d":"-6.00 €"}},null,"Koncerti",null,null,{"$f":"Zabava[[#This Row],[Predvideni stroški]]-Zabava[[#This Row],[Dejanski stroški]]","v":{"v":0,"d":"0.00 €"}}]
[null,"Voda in kanalščina",{"v":8,"d":"8.00 €"},{"v":8,"d":"8.00 €"},{"$f":"Nastanitev[[#This Row],[Predvideni stroški]]-Nastanitev[[#This Row],[Dejanski stroški]]","v":{"v":0,"d":"0.00 €"}},null,"Športni dogodki",null,null,{"$f":"Zabava[[#This Row],[Predvideni stroški]]-Zabava[[#This Row],[Dejanski stroški]]","v":{"v":0,"d":"0.00 €"}}]
[null,"Kabelska",{"v":34,"d":"34.00 €"},{"v":34,"d":"34.00 €"},{"$f":"Nastanitev[[#This Row],[Predvideni stroški]]-Nastanitev[[#This Row],[Dejanski stroški]]","v":{"v":0,"d":"0.00 €"}},null,"Gledališče",null,null,{"$f":"Zabava[[#This Row],[Predvideni stroški]]-Zabava[[#This Row],[Dejanski stroški]]","v":{"v":0,"d":"0.00 €"}}]
[null,"Odvoz odpadkov",{"v":10,"d":"10.00 €"},{"v":10,"d":"10.00 €"},{"$f":"Nastanitev[[#This Row],[Predvideni stroški]]-Nastanitev[[#This Row],[Dejanski stroški]]","v":{"v":0,"d":"0.00 €"}},null,"Drugo",null,null,{"$f":"Zabava[[#This Row],[Predvideni stroški]]-Zabava[[#This Row],[Dejanski stroški]]","v":{"v":0,"d":"0.00 €"}}]
[null,"Vzdrževanje ali popravila",{"v":23,"d":"23.00 €"},{"v":0,"d":"0.00 €"},{"$f":"Nastanitev[[#This Row],[Predvideni stroški]]-Nastanitev[[#This Row],[Dejanski stroški]]","v":{"v":23,"d":"23.00 €"}},null,"Drugo",null,null,{"$f":"Zabava[[#This Row],[Predvideni stroški]]-Zabava[[#This Row],[Dejanski stroški]]","v":{"v":0,"d":"0.00 €"}}]
[null,"Zaloge",{"v":0,"d":"0.00 €"},{"v":0,"d":"0.00 €"},{"$f":"Nastanitev[[#This Row],[Predvideni stroški]]-Nastanitev[[#This Row],[Dejanski stroški]]","v":{"v":0,"d":"0.00 €"}},null,"Drugo",null,null,{"$f":"Zabava[[#This Row],[Predvideni stroški]]-Zabava[[#This Row],[Dejanski stroški]]","v":{"v":0,"d":"0.00 €"}}]
[null,"Drugo",{"v":0,"d":"0.00 €"},{"v":0,"d":"0.00 €"},{"$f":"Nastanitev[[#This Row],[Predvideni stroški]]-Nastanitev[[#This Row],[Dejanski stroški]]","v":{"v":0,"d":"0.00 €"}},null,"Delna vsota",null,null,{"$f":"SUBTOTAL(103,Zabava[Razlika])","v":{"v":9,"d":"9.00 €"}}]
[null,"Delna vsota",null,null,{"$f":"SUBTOTAL(103,Nastanitev[Razlika])","v":{"v":10,"d":"10.00 €"}}]
[{"$nulls":6},"POSOJILA","Predvideni stroški","Dejanski stroški","Razlika"]
["Podrobnosti vnesite v tabelo »Prevozi«, ki se začne v celici na desni, ter v tabelo »Posojila«, ki se začne v celici G26. Naslednji korak je v celici A37.","PREVOZ","Predvideni stroški","Dejanski stroški","Razlika",null,"Osebno",null,null,{"$f":"Posojila[[#This Row],[Predvideni stroški]]-Posojila[[#This Row],[Dejanski stroški]]","v":{"v":0,"d":"0.00 €"}}]
[null,"Plačilo vozila",null,null,{"$f":"Prevoz[[#This Row],[Predvideni stroški]]-Prevoz[[#This Row],[Dejanski stroški]]","v":{"v":0,"d":"0.00 €"}},null,"Študentsko",null,null,{"$f":"Posojila[[#This Row],[Predvideni stroški]]-Posojila[[#This Row],[Dejanski stroški]]","v":{"v":0,"d":"0.00 €"}}]
[null,"Avtobus/taksi",null,null,{"$f":"Prevoz[[#This Row],[Predvideni stroški]]-Prevoz[[#This Row],[Dejanski stroški]]","v":{"v":0,"d":"0.00 €"}},null,"Kreditna kartica",null,null,{"$f":"Posojila[[#This Row],[Predvideni stroški]]-Posojila[[#This Row],[Dejanski stroški]]","v":{"v":0,"d":"0.00 €"}}]
[null,"Zavarovanje",null,null,{"$f":"Prevoz[[#This Row],[Predvideni stroški]]-Prevoz[[#This Row],[Dejanski stroški]]","v":{"v":0,"d":"0.00 €"}},null,"Kreditna kartica",null,null,{"$f":"Posojila[[#This Row],[Predvideni stroški]]-Posojila[[#This Row],[Dejanski stroški]]","v":{"v":0,"d":"0.00 €"}}]
[null,"Registracija",null,null,{"$f":"Prevoz[[#This Row],[Predvideni stroški]]-Prevoz[[#This Row],[Dejanski stroški]]","v":{"v":0,"d":"0.00 €"}},null,"Kreditna kartica",null,null,{"$f":"Posojila[[#This Row],[Predvideni stroški]]-Posojila[[#This Row],[Dejanski stroški]]","v":{"v":0,"d":"0.00 €"}}]
[null,"Gorivo",null,null,{"$f":"Prevoz[[#This Row],[Predvideni stroški]]-Prevoz[[#This Row],[Dejanski stroški]]","v":{"v":0,"d":"0.00 €"}},null,"Drugo",null,null,{"$f":"Posojila[[#This Row],[Predvideni stroški]]-Posojila[[#This Row],[Dejanski stroški]]","v":{"v":0,"d":"0.00 €"}}]
[null,"Vzdrževanje",null,null,{"$f":"Prevoz[[#This Row],[Predvideni stroški]]-Prevoz[[#This Row],[Dejanski stroški]]","v":{"v":0,"d":"0.00 €"}},null,"Delna vsota",null,null,{"$f":"SUBTOTAL(103,Posojila[Razlika])","v":{"v":6,"d":"6.00 €"}}]
[null,"Drugo",null,null,{"$f":"Prevoz[[#This Row],[Predvideni stroški]]-Prevoz[[#This Row],[Dejanski stroški]]","v":{"v":0,"d":"0.00 €"}}]
[null,"Delna vsota",null,null,{"$f":"SUBTOTAL(103,Prevoz[Razlika])","v":{"v":7,"d":"7.00 €"}},null,"DAVKI","Predvideni stroški","Dejanski stroški","Razlika"]
[{"$nulls":6},"Zvezni",null,null,{"$f":"Davki[[#This Row],[Predvideni stroški]]-Davki[[#This Row],[Dejanski stroški]]","v":{"v":0,"d":"0.00 €"}}]
["Podrobnosti vnesite v tabelo »Zavarovanje«, ki se začne v celici na desni, ter v tabelo »Davki«, ki se začne v celici G35. Naslednji korak je v celici A44.","ZAVAROVANJE","Predvideni stroški","Dejanski stroški","Razlika",null,"Državni",null,null,{"$f":"Davki[[#This Row],[Predvideni stroški]]-Davki[[#This Row],[Dejanski stroški]]","v":{"v":0,"d":"0.00 €"}}]
[null,"Dom",null,null,{"$f":"Zavarovanje[[#This Row],[Predvideni stroški]]-Zavarovanje[[#This Row],[Dejanski stroški]]","v":{"v":0,"d":"0.00 €"}},null,"Lokalni",null,null,{"$f":"Davki[[#This Row],[Predvideni stroški]]-Davki[[#This Row],[Dejanski stroški]]","v":{"v":0,"d":"0.00 €"}}]
[null,"Zdravstveno",null,null,{"$f":"Zavarovanje[[#This Row],[Predvideni stroški]]-Zavarovanje[[#This Row],[Dejanski stroški]]","v":{"v":0,"d":"0.00 €"}},null,"Drugo",null,null,{"$f":"Davki[[#This Row],[Predvideni stroški]]-Davki[[#This Row],[Dejanski stroški]]","v":{"v":0,"d":"0.00 €"}}]
[null,"Življenjsko",null,null,{"$f":"Zavarovanje[[#This Row],[Predvideni stroški]]-Zavarovanje[[#This Row],[Dejanski stroški]]","v":{"v":0,"d":"0.00 €"}},null,"Delna vsota",null,null,{"$f":"SUBTOTAL(103,Davki[Razlika])","v":{"v":4,"d":"4.00 €"}}]
[null,"Drugo",null,null,{"$f":"Zavarovanje[[#This Row],[Predvideni stroški]]-Zavarovanje[[#This Row],[Dejanski stroški]]","v":{"v":0,"d":"0.00 €"}}]
[null,"Delna vsota",null,null,{"$f":"SUBTOTAL(103,Zavarovanje[Razlika])","v":{"v":4,"d":"4.00 €"}},null,"PRIHRANKI ALI NALOŽBE","Predvideni stroški","Dejanski stroški","Razlika"]
[{"$nulls":6},"Varčevalni račun",null,null,{"$f":"Prihranki[[#This Row],[Predvideni stroški]]-Prihranki[[#This Row],[Dejanski stroški]]","v":{"v":0,"d":"0.00 €"}}]
["Podrobnosti vnesite v tabelo »Hrana«, ki se začne v celici na desni, ter v tabelo »Prihranki«, ki se začne v celici G42. Naslednji korak je v celici A50.","HRANA","Predvideni stroški","Dejanski stroški","Razlika",null,"Naložbeni račun",null,null,{"$f":"Prihranki[[#This Row],[Predvideni stroški]]-Prihranki[[#This Row],[Dejanski stroški]]","v":{"v":0,"d":"0.00 €"}}]
[null,"Živila",null,null,{"$f":"Hrana[[#This Row],[Predvideni stroški]]-Hrana[[#This Row],[Dejanski stroški]]","v":{"v":0,"d":"0.00 €"}},null,"Drugo",null,null,{"$f":"Prihranki[[#This Row],[Predvideni stroški]]-Prihranki[[#This Row],[Dejanski stroški]]","v":{"v":0,"d":"0.00 €"}}]
[null,"Kosila v restavracijah",null,null,{"$f":"Hrana[[#This Row],[Predvideni stroški]]-Hrana[[#This Row],[Dejanski stroški]]","v":{"v":0,"d":"0.00 €"}},null,"Delna vsota",null,null,{"$f":"SUBTOTAL(103,Prihranki[Razlika])","v":{"v":3,"d":"3.00 €"}}]
[null,"Drugo",null,null,{"$f":"Hrana[[#This Row],[Predvideni stroški]]-Hrana[[#This Row],[Dejanski stroški]]","v":{"v":0,"d":"0.00 €"}}]
[null,"Delna vsota",null,null,{"$f":"SUBTOTAL(103,Hrana[Razlika])","v":{"v":3,"d":"3.00 €"}},null,"DARILA IN DONACIJE","Predvideni stroški","Dejanski stroški","Razlika"]
[{"$nulls":6},"Dobrodelno 1",null,null,{"$f":"Darila[[#This Row],[Predvideni stroški]]-Darila[[#This Row],[Dejanski stroški]]","v":{"v":0,"d":"0.00 €"}}]
["Podrobnosti vnesite v tabelo »Hišni ljubljenčki«, ki se začne v celici na desni, ter v tabelo »Darila«, ki se začne v celici G48. Naslednji korak je v celici A58.","HIŠNI LJUBLJENČKI","Predvideni stroški","Dejanski stroški","Razlika",null,"Dobrodelno 2",null,null,{"$f":"Darila[[#This Row],[Predvideni stroški]]-Darila[[#This Row],[Dejanski stroški]]","v":{"v":0,"d":"0.00 €"}}]
[null,"Hrana",null,null,{"$f":"Hišni_ljubljenčki[[#This Row],[Predvideni stroški]]-Hišni_ljubljenčki[[#This Row],[Dejanski stroški]]","v":{"v":0,"d":"0.00 €"}},null,"Dobrodelno 3",null,null,{"$f":"Darila[[#This Row],[Predvideni stroški]]-Darila[[#This Row],[Dejanski stroški]]","v":{"v":0,"d":"0.00 €"}}]
[null,"Zdravstvene potrebščine",null,null,{"$f":"Hišni_ljubljenčki[[#This Row],[Predvideni stroški]]-Hišni_ljubljenčki[[#This Row],[Dejanski stroški]]","v":{"v":0,"d":"0.00 €"}},null,"Delna vsota",null,null,{"$f":"SUBTOTAL(103,Darila[Razlika])","v":{"v":3,"d":"3.00 €"}}]
[null,"Nega",null,null,{"$f":"Hišni_ljubljenčki[[#This Row],[Predvideni stroški]]-Hišni_ljubljenčki[[#This Row],[Dejanski stroški]]","v":{"v":0,"d":"0.00 €"}}]
[null,"Igrače",null,null,{"$f":"Hišni_ljubljenčki[[#This Row],[Predvideni stroški]]-Hišni_ljubljenčki[[#This Row],[Dejanski stroški]]","v":{"v":0,"d":"0.00 €"}},null,"PRAVNE ZADEVE","Predvideni stroški","Dejanski stroški","Razlika"]
[null,"Drugo",null,null,{"$f":"Hišni_ljubljenčki[[#This Row],[Predvideni stroški]]-Hišni_ljubljenčki[[#This Row],[Dejanski stroški]]","v":{"v":0,"d":"0.00 €"}},null,"Odvetnik",null,null,{"$f":"Pravne_zadeve[[#This Row],[Predvideni stroški]]-Pravne_zadeve[[#This Row],[Dejanski stroški]]","v":{"v":0,"d":"0.00 €"}}]
[null,"Delna vsota",null,null,{"$f":"SUBTOTAL(103,Hišni_ljubljenčki[Razlika])","v":{"v":5,"d":"5.00 €"}},null,"Preživnina",null,null,{"$f":"Pravne_zadeve[[#This Row],[Predvideni stroški]]-Pravne_zadeve[[#This Row],[Dejanski stroški]]","v":{"v":0,"d":"0.00 €"}}]
[{"$nulls":6},"Plačila do zadržanja ali razsodbe",null,null,{"$f":"Pravne_zadeve[[#This Row],[Predvideni stroški]]-Pravne_zadeve[[#This Row],[Dejanski stroški]]","v":{"v":0,"d":"0.00 €"}}]
["Podrobnosti vnesite v tabelo »Osebna nega«, ki se začne v celici na desni, ter v tabelo »Pravne zadeve«, ki se začne v celici G54. Naslednje navodilo je v celici A61.","OSEBNA NEGA","Predvideni stroški","Dejanski stroški","Razlika",null,"Drugo",null,null,{"$f":"Pravne_zadeve[[#This Row],[Predvideni stroški]]-Pravne_zadeve[[#This Row],[Dejanski stroški]]","v":{"v":0,"d":"0.00 €"}}]
[null,"Zdravstvene potrebščine",null,null,{"$f":"Osebna_nega[[#This Row],[Predvideni stroški]]-Osebna_nega[[#This Row],[Dejanski stroški]]","v":{"v":0,"d":"0.00 €"}},null,"Delna vsota",null,null,{"$f":"SUBTOTAL(103,Pravne_zadeve[Razlika])","v":{"v":4,"d":"4.00 €"}}]
[null,"Lasje/nohti",null,null,{"$f":"Osebna_nega[[#This Row],[Predvideni stroški]]-Osebna_nega[[#This Row],[Dejanski stroški]]","v":{"v":0,"d":"0.00 €"}}]
["Skupni predvideni stroški so samodejno izračunani v celici J61, skupni dejanski stroški v celici J63 in skupna razlika v celici J65.","Oblačila",null,null,{"$f":"Osebna_nega[[#This Row],[Predvideni stroški]]-Osebna_nega[[#This Row],[Dejanski stroški]]","v":{"v":0,"d":"0.00 €"}},null,"Predvideni stroški skupaj",null,null,{"$f":"SUBTOTAL(109,Nastanitev[Predvideni stroški],Prevoz[Predvideni stroški],Zavarovanje[Predvideni stroški],Hrana[Predvideni stroški],Hišni_ljubljenčki[Predvideni stroški],Osebna_nega[Predvideni stroški],Zabava[Predvideni stroški],Posojila[Predvideni stroški],Davki[Predvideni stroški],Prihranki[Predvideni stroški],Darila[Predvideni stroški],Pravne_zadeve[Predvideni stroški])","v":{"v":1195,"d":"1,195.00 €"}}]
[null,"Kemična čistilnica",null,null,{"$f":"Osebna_nega[[#This Row],[Predvideni stroški]]-Osebna_nega[[#This Row],[Dejanski stroški]]","v":{"v":0,"d":"0.00 €"}}]
[null,"Fitnes",null,null,{"$f":"Osebna_nega[[#This Row],[Predvideni stroški]]-Osebna_nega[[#This Row],[Dejanski stroški]]","v":{"v":0,"d":"0.00 €"}},null,"Skupni dejanski stroški",null,null,{"$f":"SUBTOTAL(109,Nastanitev[Dejanski stroški],Prevoz[Dejanski stroški],Zavarovanje[Dejanski stroški],Hrana[Dejanski stroški],Hišni_ljubljenčki[Dejanski stroški],Osebna_nega[Dejanski stroški],Zabava[Dejanski stroški],Posojila[Dejanski stroški],Davki[Dejanski stroški],Prihranki[Dejanski stroški],Darila[Dejanski stroški],Pravne_zadeve[Dejanski stroški])","v":{"v":1236,"d":"1,236.00 €"}}]
[null,"Pristojbine za organizacijo",null,null,{"$f":"Osebna_nega[[#This Row],[Predvideni stroški]]-Osebna_nega[[#This Row],[Dejanski stroški]]","v":{"v":0,"d":"0.00 €"}}]
[null,"Drugo",null,null,{"$f":"Osebna_nega[[#This Row],[Predvideni stroški]]-Osebna_nega[[#This Row],[Dejanski stroški]]","v":{"v":0,"d":"0.00 €"}},null,"Razlika skupaj",null,null,{"$f":"J61-J63","v":{"v":-41,"d":"-41.00 €"}}]
[null,"Delna vsota",null,null,{"$f":"SUBTOTAL(103,Osebna_nega[Razlika])","v":{"v":7,"d":"7.00 €"}}]